Cogmind - Beta 17.1 @@@ ROGUE MODE // 2026.09.02 @ 22:11:21 Player: C0-2MO Result: Escaped! Performance ------------- Evolutions (9) 4500 Regions Visited (16) 3200 Robots Destroyed (20) 100 Value Destroyed (258) 258 Prototype IDs (11) 220 Alien Tech Used (0) 0 Bonus (24296) 24296 TOTAL SCORE: 32574 Bonus ------- Pacifist 200 Entered Garrisons 200 Entered DSFs 1000 Win 3000 Win Speed 19896 Cogmind --------- Core Integrity 1519/1600 Matter 260/300 Energy 97/100 System Corruption 0% Temperature Cool (9) Movement Flying (27) Location To Epsilon Eridani Parts ------- > --- POWER (4) -------- (None) > --- PROPULSION (12) -- Aerolev Unit Antigrav Array Electron Diverter Impulse Thruster Array Experimental Q-thruster > --- UTILITY (7) ------ Machine Analyzer Enhanced Optical Array Advanced Sensor Array Advanced Signal Interpreter Improved Corruption Screen > --- WEAPON (2) ------- Heavy Flail > --- INVENTORY (5) ---- Fusion Compressor Compact Particle Reactor Stasis Canceller Enhanced Nova Cannon Peak State ------------ > --- POWER ------------ Enhanced Nuclear Core Enhanced Nuclear Core Light Fission Core Compact Particle Reactor > --- PROPULSION ------- Aerolev Unit Aerolev Unit Improved Linear Gravjet Improved Linear Gravjet Improved Linear Gravjet Improved Linear Gravjet Electron Diverter Impulse Thruster Array > --- UTILITY ---------- Advanced Cryofiber Web Coolant Injector Machine Analyzer Enhanced Optical Array Improved Corruption Screen > --- WEAPON ----------- Improved Matter Neutralizer Heavy Flail > --- INVENTORY -------- Fusion Compressor Micro Fission Core Improved Linear Gravjet [Rating: 123] Favorites ----------- Power Enhanced Nuclear Core Power Core Enhanced Nuclear Core Reactor Compact Particle Reactor Propulsion Aerolev Unit Treads Light Treads Hover Unit Aerolev Unit Flight Unit Flight Unit Utility Enhanced Optical Array Device Improved Sensor Array Processor Enhanced Optical Array Hackware Hacking Suite Protection Propulsion Shielding Weapon Heavy Flail Energy Gun EM Pulse Gun Energy Cannon Enhanced Nova Cannon Ballistic Gun Light Assault Rifle Launcher Mini Grenade Launcher Impact Weapon Heavy Flail Build | -11 -10 -10 -9 -9 -8 -7 -6 -6 -5 -4 -4 -3 -2 -2 -2 -1 ------- Run | Yrd Mat Min Mat Min Mat Fac Fac DSF Fac Fac DSF Res Res Gar Res Acc Slots Evolved 18 | . . . 2 . 2 2 2 . 2 2 . 2 2 . . 2 Power 3 | . . . . . . 1 . . . . . 2 . . . . Propulsion 10 | . . . 2 . 1 1 1 . 1 2 . . 1 . . 1 Utility 5 | . . . . . 1 . 1 . 1 . . . 1 . . 1 Weapon . | . . . . . . . . . . . . . . . . . Parts Attached 48 | 4 . . 1 3 2 10 . 1 5 . 5 8 . . 2 7 Power 5 | . . . . . . 1 . . 1 . . 3 . . . . Engine . | . . . . . . . . . . . . . . . . . Core 4 | . . . . . . 1 . . 1 . . 2 . . . . Reactor 1 | . . . . . . . . . . . . 1 . . . . Propulsion 22 | 2 . . . 3 2 5 . . . . 5 2 . . 1 2 Treads 5 | 2 . . . 3 . . . . . . . . . . . . Leg . | . . . . . . . . . . . . . . . . . Wheel . | . . . . . . . . . . . . . . . . . Hover 11 | . . . . . . 4 . . . . 5 . . . . 2 Flight 6 | . . . . . 2 1 . . . . . 2 . . 1 . Utility 15 | . . . . . . 3 . 1 4 . . 3 . . . 4 Device 6 | . . . . . . 1 . . 1 . . 2 . . . 2 Storage . | . . . . . . . . . . . . . . . . . Processor 6 | . . . . . . 1 . . 3 . . 1 . . . 1 Hackware 1 | . . . . . . . . . . . . . . . . 1 Protection 2 | . . . . . . 1 . 1 . . . . . . . . Artifact . | . . . . . . . . . . . . . . . . . Weapon 6 | 2 . . 1 . . 1 . . . . . . . . 1 1 Energy Gun 1 | 1 . . . . . . . . . . . . . . . . Energy Cannon 2 | . . . . . . . . . . . . . . . 1 1 Ballistic Gun 1 | 1 . . . . . . . . . . . . . . . . Ballistic Cannon . | . . . . . . . . . . . . . . . . . Launcher 1 | . . . 1 . . . . . . . . . . . . . Special Weapon . | . . . . . . . . . . . . . . . . . Impact Weapon 1 | . . . . . . 1 . . . . . . . . . . Slashing Weapon . | . . . . . . . . . . . . . . . . . Piercing Weapon . | . . . . . . . . . . . . . . . . . Special Melee Weapon . | . . . . . . . . . . . . . . . . . Unidentified Prototypes 7 | . . . . . . 3 . . . . . 2 . . 2 . Parts Lost 24 | . . . . . 5 . . 2 . . 3 2 . 1 4 7 Power 3 | . . . . . . . . . . . . . . . . 3 Propulsion 14 | . . . . . 4 . . 1 . . 1 1 . 1 4 2 Utility 6 | . . . . . . . . 1 . . 2 1 . . . 2 Weapon 1 | . . . . . 1 . . . . . . . . . . . Highest Loss Streak 5 | . . . . . 5 . . 2 . . 3 5 . 1 3 5 To Critical Strikes 1 | . . . . . . . . . . . . . . . . 1 Average Backups 2 | . . . 1 2 4 . 2 2 2 4 4 2 3 3 4 4 Power 1 | . . . . . . . 1 1 1 3 3 1 2 2 2 2 Propulsion . | . . . . . . . . . . . . 1 1 1 1 . Utility . | . . . 1 1 1 . 1 1 1 1 1 . . . . . Weapon . | . . . . 1 1 . . . . . . . . . . . Tool/Special . | . . . . . . . . . . . . . . . . . Unused Backups 3 | . . . . . 1 . . . . . . . . . . 2 Power 1 | . . . . . . . . . . . . . . . . 1 Propulsion . | . . . . . . . . . . . . . . . . . Utility 2 | . . . . . 1 . . . . . . . . . . 1 Weapon . | . . . . . . . . . . . . . . . . . Tool/Special . | . . . . . . . . . . . . . . . . . Average Slot Usage (%) 64 | . 57 57 44 55 46 55 80 79 75 73 76 90 86 85 70 61 Core 6 | . . . . . . . 6 6 6 10 10 14 13 13 13 9 Treads 7 | . 28 28 22 33 31 . . . . . . . . . . . Hover 13 | . . . . . . 5 26 26 23 21 26 33 26 26 19 11 Flight 7 | . . . . . . 15 13 9 5 5 5 8 13 11 9 12 Device 4 | . . . . . . 5 6 4 3 5 5 5 8 8 8 6 Processor 8 | . . . . . . 5 6 6 12 15 15 13 13 13 13 15 Protection 2 | . . . . . . 6 6 11 8 5 3 . . . . . Energy Gun 2 | . 14 14 11 11 6 . . . . . . . . . . . Ballistic Gun 3 | . 14 14 3 . . 6 6 6 5 5 5 4 4 4 . . Launcher 1 | . . . 7 11 7 . . . . . . . . . . . Impact Weapon 3 | . . . . . . 5 6 6 5 5 5 4 4 4 4 4 Peak Build Rating 123 | 4 4 4 5 7 8 36 36 39 52 52 87 116 116 116 123 119 Average Rating 53 | 2 4 4 4 6 5 16 36 36 43 52 66 100 116 115 101 106 On Entrance 44 | . 4 4 4 5 7 2 36 36 34 52 52 77 116 116 115 92 Avg Prop Armor Cover (%) 15 | 26 26 26 26 32 37 14 11 6 6 8 6 5 5 4 11 15 Naked Turns 8 | . . . . . 8 . . . . . . . . . . . Heaviest Build 41 | 3 3 3 3 3 3 14 14 22 22 19 19 41 41 41 41 29 Greatest Support 74 | 3 3 3 3 3 4 24 24 24 24 24 74 64 60 60 49 32 Greatest Overweight (x) 1 | . . . . . . . . . . . . . . . 1 . Average Overweight (x) . | . . . . . . . . . . . . . . . . . Largest Inventory Capacity 5 | 5 5 5 5 5 5 5 5 5 5 5 5 5 5 5 5 5 Average Capacity 5 | 5 5 5 5 5 5 5 5 5 5 5 5 5 5 5 5 5 Most Carried 5 | . . 1 2 4 5 3 2 2 4 4 5 4 3 3 5 5 Average Carried 2 | . . . 1 3 4 . 2 2 2 4 4 2 3 3 4 4 Final Capacity 5 | 5 5 5 5 5 5 5 5 5 5 5 5 5 5 5 5 5 Final Carried 5 | . . 1 2 4 4 2 2 2 4 4 5 3 3 3 5 4 Class Distribution -------------------- 53% | Mutant 27% | Scout 13% | Generator-Sprinter 4% | Sprinter Dominant Class ---------------- Mutant | -10/Materials Mutant | -10/Mines Mutant | -9/Materials Mutant | -9/Mines Mutant | -8/Materials Mutant | -7/Factory Mutant | -6/Factory Mutant | -6/DSF Scout | -5/Factory Scout | -4/Factory Scout | -4/DSF Generator-Sprinter | -3/Research Generator-Sprinter | -2/Research Sprinter | -2/Garrison Mutant | -2/Research Scout | -1/Access Resources | -11 -10 -10 -9 -9 -8 -7 -6 -6 -5 -4 -4 -3 -2 -2 -2 -1 ----------- Run | Yrd Mat Min Mat Min Mat Fac Fac DSF Fac Fac DSF Res Res Gar Res Acc Matter Collected 688 | 234 . 6 . 120 . 138 . . 20 . . 104 . . 66 . Remotely . | . . . . . . . . . . . . . . . . . Salvage Created 614 | . . . 9 . 22 192 . . 116 . . 104 . . 156 15 Parts 22 | . . . 4 . 7 3 . . 1 . . 3 . . . 4 Haulers Intercepted 4 | . . . . . . 2 . . 1 . . 1 . . . . Recyclers Shooed 2 | . . . . 1 1 . . . . . . . . . . . Parts Field Recycled . | . . . . . . . . . . . . . . . . . Retrieved Matter . | . . . . . . . . . . . . . . . . . Parts Self-Destructed . | . . . . . . . . . . . . . . . . . Prevented . | . . . . . . . . . . . . . . . . . Parts Restored . | . . . . . . . . . . . . . . . . . Kills | -11 -10 -10 -9 -9 -8 -7 -6 -6 -5 -4 -4 -3 -2 -2 -2 -1 ------- Run | Yrd Mat Min Mat Min Mat Fac Fac DSF Fac Fac DSF Res Res Gar Res Acc Combat Hostiles Destroyed 6 | . . . 1 . 5 . . . . . . . . . . . AOE 6 | . . . 1 . 5 . . . . . . . . . . . Classes Destroyed 8 | . . . 2 . 1 3 . . 1 . . 1 . . . . Worker 2 | . . . . . . . . . . . . 2 . . . . Builder 4 | . . . . . . 2 . . . . . . . . 1 1 Tunneler 1 | . . . 1 . . . . . . . . . . . . . Hauler 4 | . . . . . . 2 . . 1 . . 1 . . . . Recycler 2 | . . . . . . 1 . . . . . . . . 1 . Operator 1 | . . . . . . . . . 1 . . . . . . . Swarmer 5 | . . . . . 5 . . . . . . . . . . . Sentry 1 | . . . 1 . . . . . . . . . . . . . Best Kill Streak 5 | . . . 2 . 5 2 . . 2 . . 2 . . 1 1 Combat Bots Only 5 | . . . 1 . 5 . . . . . . . . . . . Max Kills in Single Turn 2 | . . . 1 . 2 1 . . 1 . . 1 . . 1 1 Gunslinging . | . . . . . . . . . . . . . . . . . Exploded 2 | . . . 1 . 2 . . . . . . . . . . . Melee . | . . . . . . . . . . . . . . . . . Uniques/NPCs Destroyed . | . . . . . . . . . . . . . . . . . Combat | -11 -10 -10 -9 -9 -8 -7 -6 -6 -5 -4 -4 -3 -2 -2 -2 -1 -------- Run | Yrd Mat Min Mat Min Mat Fac Fac DSF Fac Fac DSF Res Res Gar Res Acc Hostile Shots Fired 227 | . . . 10 9 64 5 . 6 7 . 5 8 . 6 40 67 Missed 97 | . . . 3 3 25 3 . 1 2 . 2 1 . 2 22 33 Hits 130 | . . . 7 6 39 2 . 5 5 . 3 7 . 4 18 34 Projectile 130 | . . . 7 6 39 2 . 5 5 . 3 7 . 4 18 34 AOE 4 | . . . . 4 . . . . . . . . . . . . Critical Strikes 11 | . . . 2 . 2 . . . 1 . 1 1 . . 1 3 Damage Taken 3064 | . . . 198 248 553 28 . 292 111 . 144 318 . 126 412 634 Core 520 | . . . 13 96 160 . . . 20 . . 36 . . 114 81 Absorbed by Shields . | . . . . . . . . . . . . . . . . . Redirected to Shielding 62 | . . . . . . 8 . 18 12 . 24 . . . . . Regen/Repaired (Parts) 55 | . . . . . . . . . . . . . . . 55 . Core Remaining (%) 93 | 100 . 100 . 72 70 100 . 100 98 . 100 97 . . 92 94 Volleys Fired 27 | . . . 20 . 6 . . . . . . . . . . 1 Largest 2 | . . . 2 . 2 . . . . . . . . . . 1 Hottest 120 | . . . 70 . 70 . . . . . . . . . . 120 Shots Fired 33 | . . . 24 . 8 . . . . . . . . . . 1 Gun 17 | . . . 15 . 2 . . . . . . . . . . . Cannon 1 | . . . . . . . . . . . . . . . . 1 Launcher 15 | . . . 9 . 6 . . . . . . . . . . . Special . | . . . . . . . . . . . . . . . . . Kinetic . | . . . . . . . . . . . . . . . . . Thermal 1 | . . . . . . . . . . . . . . . . 1 Explosive 15 | . . . 9 . 6 . . . . . . . . . . . Electromagnetic 17 | . . . 15 . 2 . . . . . . . . . . . Robot Hit Streak 4 | . . . 4 . 2 . . . . . . . . . . . Robot Miss Streak 3 | . . . 3 . 3 . . . . . . . . . . . Penetration Max . | . . . . . . . . . . . . . . . . . Secondary Targets . | . . . . . . . . . . . . . . . . . Shots Hit Robots 33 | . . . 14 . 2 8 . . 2 . . 5 . . 2 . Core Hits 20 | . . . 4 1 13 . . . . . . 1 . . . 1 Critical Kills . | . . . . . . . . . . . . . . . . . Critical Parts Destroyed 3 | . . . . . . 2 . . 1 . . . . . . . Critical Strikes 4 | . . . 1 . . 2 . . 1 . . . . . . . Corrupt 1 | . . . 1 . . . . . . . . . . . . . Smash 3 | . . . . . . 2 . . 1 . . . . . . . Melee Attacks 65 | . . . . . . 10 . . 5 . . 16 4 . 10 20 Impact 65 | . . . . . . 10 . . 5 . . 16 4 . 10 20 Slashing . | . . . . . . . . . . . . . . . . . Piercing . | . . . . . . . . . . . . . . . . . Sneak Attacks 12 | . . . . . . 5 . . 1 . . 4 . . 2 . Combat Hostiles . | . . . . . . . . . . . . . . . . . Follow-up Attacks . | . . . . . . . . . . . . . . . . . Damage Inflicted 2673 | . . . 362 19 543 696 . . 198 . . 405 . . 226 224 Guns 128 | . . . 116 . 12 . . . . . . . . . . . Cannons . | . . . . . . . . . . . . . . . . . Explosions 995 | . . . 246 . 525 . . . . . . . . . . 224 Melee 1525 | . . . . . . 696 . . 198 . . 405 . . 226 . Ramming 25 | . . . . 19 6 . . . . . . . . . . . Kinetic . | . . . . . . . . . . . . . . . . . Thermal 224 | . . . . . . . . . . . . . . . . 224 Explosive 771 | . . . 246 . 525 . . . . . . . . . . . Electromagnetic 128 | . . . 116 . 12 . . . . . . . . . . . Impact 1525 | . . . . . . 696 . . 198 . . 405 . . 226 . Slashing . | . . . . . . . . . . . . . . . . . Piercing . | . . . . . . . . . . . . . . . . . Highest Corruption 1 | . . . . . . . . . 1 . . . . . . . Average Corruption 1 | . . . . . . . . . 1 . . . . . . . Corruption Purged . | . . . . . . . . . . . . . . . . . Corruption Blocked 3 | . . . . . . . . . . . . 1 . . . 2 Overload Shots . | . . . . . . . . . . . . . . . . . Overflow Damage 786 | . . . . . 4 349 . . 178 . . 90 . . 156 9 Projectiles . | . . . . . . . . . . . . . . . . . Explosions 13 | . . . . . 4 . . . . . . . . . . 9 Melee 773 | . . . . . . 349 . . 178 . . 90 . . 156 . Knockbacks 4 | . . . . . . 1 . . 1 . . . . . 2 . Impact 4 | . . . . . . 1 . . 1 . . . . . 2 . Kinetic . | . . . . . . . . . . . . . . . . . Secondary . | . . . . . . . . . . . . . . . . . Self-Inflicted Damage 130 | . . . 97 9 24 . . . . . . . . . . . Shots 4 | . . . 3 . 1 . . . . . . . . . . . Rammed 5 | . . . . 3 2 . . . . . . . . . . . Targets Rammed 5 | . . . . 3 2 . . . . . . . . . . . Kicked . | . . . . . . . . . . . . . . . . . Crushed . | . . . . . . . . . . . . . . . . . Highest Temperature 303 | . . . 34 . 14 303 . . 12 . 59 198 218 302 63 80 Average Temperature 132 | . . . 19 . 8 146 . . 12 . 40 159 142 153 26 46 Received Heat Transfer 546 | . . . 63 30 252 18 . . 54 . . 21 . 36 45 27 Effects 2 | . . . . . . . . . . . . . . 2 . . Interference 1 | . . . . . . . . . . . . . . 1 . . Short Circuit 1 | . . . . . . . . . . . . . . 1 . . Siege Activations . | . . . . . . . . . . . . . . . . . Martial Activations . | . . . . . . . . . . . . . . . . . Shielding Activations . | . . . . . . . . . . . . . . . . . Robots Disrupted . | . . . . . . . . . . . . . . . . . Combat Hostiles . | . . . . . . . . . . . . . . . . . Robots Corrupted 7 | . . . . . . 3 . . 1 . . 1 . . 2 . Combat Hostiles . | . . . . . . . . . . . . . . . . . Parts Fried 18 | . . . . . . 9 . . 2 . . 2 . . 5 . Impact Corruptions 22 | . . . . . . 9 . . 4 . . 3 . . 6 . Robots Melted . | . . . . . . . . . . . . . . . . . Combat Hostiles . | . . . . . . . . . . . . . . . . . Parts Melted . | . . . . . . . . . . . . . . . . . Heat Transferred 100 | . . . . . . . . . . . . . . . . 100 Parts Sabotaged . | . . . . . . . . . . . . . . . . . Parts Stolen . | . . . . . . . . . . . . . . . . . Parts Stripped . | . . . . . . . . . . . . . . . . . Power Chain Reactions . | . . . . . . . . . . . . . . . . . Alert | -11 -10 -10 -9 -9 -8 -7 -6 -6 -5 -4 -4 -3 -2 -2 -2 -1 ------- Run | Yrd Mat Min Mat Min Mat Fac Fac DSF Fac Fac DSF Res Res Gar Res Acc Maximum Alert Level 1 | . . . . . . . . . . . . . . . . 1 Low Security (%) 98 | 100 100 100 100 100 100 100 100 100 100 100 100 100 100 100 100 93 Level 1 1 | . . . . . . . . . . . . . . . . 6 Level 2 . | . . . . . . . . . . . . . . . . . Level 3 . | . . . . . . . . . . . . . . . . . Level 4 . | . . . . . . . . . . . . . . . . . Level 5 . | . . . . . . . . . . . . . . . . . High Security . | . . . . . . . . . . . . . . . . . Max Security . | . . . . . . . . . . . . . . . . . Peak Influence 307 | . . . 103 31 171 137 75 49 29 11 7 78 52 79 51 307 Initial 77 | . . . . 31 3 77 51 49 14 . 7 . 43 39 44 23 Average 46 | . . . 56 22 60 109 54 39 9 2 2 32 47 53 36 49 Influence Increases 1245 | . . . 113 . 246 119 29 . 36 11 . 138 9 50 75 419 Destroy 0b10 Robot/C 120 | . . . 20 . 100 . . . . . . . . . . . Destroy 0b10 Robot/NC 70 | . . . 5 . . 25 . . 10 . . 15 . . 10 5 Destroy Leader 38 | . . . 10 . 20 4 . . 2 . . 2 . . . . Successful Hack 154 | . . . 9 . 5 14 29 . 5 11 . 28 . . 14 39 Disable Machine 90 | . . . 15 . 15 15 . . 15 . . . . . . 30 Anti-Garrison Action 50 | . . . . . . . . . . . . . . 50 . . Destroy Structure 228 | . . . 54 . 46 1 . . 4 . . 18 9 . 21 75 Partial Spotted 45 | . . . . . 15 . . . . . . 30 . . . . Lose Combat Pursuer 450 | . . . . . 45 60 . . . . . 45 . . 30 270 Influence Decreases 955 | . . . 30 72 86 184 65 41 65 . 11 60 35 23 115 168 Entered New Map 348 | . . . . 52 8 94 55 21 15 . 4 . 35 13 35 16 Time Decay 422 | . . . 30 20 38 90 10 . 50 . . 44 . . 40 100 Lost Part 185 | . . . . . 40 . . 20 . . 7 16 . 10 40 52 Squads Dispatched 15 | . . . 2 . . 3 . . 3 . . . . . 1 6 Investigation 9 | . . . 1 . . 1 . . 3 . . . . . 1 3 Extermination 2 | . . . . . . . . . . . . . . . . 2 Reinforcement 4 | . . . 1 . . 2 . . . . . . . . . 1 Assault . | . . . . . . . . . . . . . . . . . Garrison . | . . . . . . . . . . . . . . . . . Intercept . | . . . . . . . . . . . . . . . . . Searches Triggered . | . . . . . . . . . . . . . . . . . Construction Impeded . | . . . . . . . . . . . . . . . . . Haulers Reinforced 2 | . . . . . . 2 . . . . . . . . . . Active Scanning Responses . | . . . . . . . . . . . . . . . . . Cargo Convoy Interrupts . | . . . . . . . . . . . . . . . . . Stealth | -11 -10 -10 -9 -9 -8 -7 -6 -6 -5 -4 -4 -3 -2 -2 -2 -1 --------- Run | Yrd Mat Min Mat Min Mat Fac Fac DSF Fac Fac DSF Res Res Gar Res Acc Distress Signals 5 | . . . . . 3 . . . . . . . . . . 2 Communications Jammed . | . . . . . . . . . . . . . . . . . Distress Signals . | . . . . . . . . . . . . . . . . . Times Spotted 105 | . . . 5 6 20 8 . 2 11 . 1 5 2 3 11 31 Peak Tracking Total 15 | . . . 4 3 15 4 . 2 11 . 1 4 2 5 9 14 Tactical Retreats 9 | . . . . . 2 1 . . . . . 1 . . 2 3 Traps | -11 -10 -10 -9 -9 -8 -7 -6 -6 -5 -4 -4 -3 -2 -2 -2 -1 ------- Run | Yrd Mat Min Mat Min Mat Fac Fac DSF Fac Fac DSF Res Res Gar Res Acc Traps Triggered 5 | . . . . . . 2 . . . . . 1 . 2 . . Indirectly . | . . . . . . . . . . . . . . . . . Trap Hack Attempts . | . . . . . . . . . . . . . . . . . Triggered . | . . . . . . . . . . . . . . . . . Disarmed . | . . . . . . . . . . . . . . . . . Reprogrammed . | . . . . . . . . . . . . . . . . . Reused . | . . . . . . . . . . . . . . . . . Traps Extracted . | . . . . . . . . . . . . . . . . . Installed . | . . . . . . . . . . . . . . . . . Triggered . | . . . . . . . . . . . . . . . . . Machines | -11 -10 -10 -9 -9 -8 -7 -6 -6 -5 -4 -4 -3 -2 -2 -2 -1 ---------- Run | Yrd Mat Min Mat Min Mat Fac Fac DSF Fac Fac DSF Res Res Gar Res Acc Machines Disabled 6 | . . . 1 . 1 1 . . 1 . . . . . . 2 Max in Single Turn 1 | . . . 1 . 1 1 . . 1 . . . . . . 1 Energy Cycler 1 | . . . . . . . . . . . . . . . . 1 Machines Repaired . | . . . . . . . . . . . . . . . . . Machines Dismantled . | . . . . . . . . . . . . . . . . . Machines Sabotaged . | . . . . . . . . . . . . . . . . . Overloaded Fab Kills . | . . . . . . . . . . . . . . . . . Hacking | -11 -10 -10 -9 -9 -8 -7 -6 -6 -5 -4 -4 -3 -2 -2 -2 -1 --------- Run | Yrd Mat Min Mat Min Mat Fac Fac DSF Fac Fac DSF Res Res Gar Res Acc Machines Accessed 23 | . . . 2 . 1 2 2 . 4 2 . 2 1 1 2 4 Terminals 15 | . . . 2 . 1 1 2 . 1 2 . 1 . 1 1 3 Fabricators 1 | . . . . . . . . . 1 . . . . . . . Repair Stations 4 | . . . . . . 1 . . 2 . . . . . 1 . Recycling Units . | . . . . . . . . . . . . . . . . . Scanalyzers 2 | . . . . . . . . . . . . 1 . . . 1 Garrison Access 1 | . . . . . . . . . . . . . 1 . . . Total Hacks 63 | . . . 6 . 4 5 4 . 10 5 . 8 2 1 7 11 Successful 27 | . . . 3 . 3 1 2 . 1 3 . 7 1 1 3 2 Failed 36 | . . . 3 . 1 4 2 . 9 2 . 1 1 . 4 9 Catastrophic 8 | . . . . . . 1 . . 4 . . . . . . 3 Database Lockouts . | . . . . . . . . . . . . . . . . . Manual 21 | . . . 2 . 3 . . . . 3 . 3 . 1 7 2 Terminals 41 | . . . 6 . 4 3 4 . 2 5 . 6 . 1 4 6 Fabricators 3 | . . . . . . . . . 3 . . . . . . . Repair Stations 10 | . . . . . . 2 . . 5 . . . . . 3 . Recycling Units . | . . . . . . . . . . . . . . . . . Scanalyzers 7 | . . . . . . . . . . . . 2 . . . 5 Garrison Access 2 | . . . . . . . . . . . . . 2 . . . Terminal Hacks 17 | . . . 3 . 2 1 2 . 1 2 . 4 . . 1 1 Robot Analysis 1 | . . . . . . . . . . 1 . . . . . . Prototype ID Bank 2 | . . . 1 . . . . . . . . 1 . . . . Open DSF 3 | . . . . . . . 1 . 1 1 . . . . . . Level Access Points 2 | . . . . . . . . . . . . 1 . . 1 . Branch Access Points 2 | . . . . . 1 . . . . . . . . . . 1 Emergency Access Points 1 | . . . . . . 1 . . . . . . . . . . Locate Traps 2 | . . . 1 . . . . . . . . 1 . . . . Zone Layout 4 | . . . 1 . 1 . 1 . . . . 1 . . . . Fabricator Hacks . | . . . . . . . . . . . . . . . . . Repair Station Hacks . | . . . . . . . . . . . . . . . . . Recycling Unit Hacks . | . . . . . . . . . . . . . . . . . Scanalyzer 3 | . . . . . . . . . . . . 2 . . . 1 Retrieve Study 3 | . . . . . . . . . . . . 2 . . . 1 Garrison Access Hacks 1 | . . . . . . . . . . . . . 1 . . . Unlock Access 1 | . . . . . . . . . . . . . 1 . . . Unauthorized Hacks 6 | . . . . . 1 . . . . 1 . 1 . 1 2 . Terminals 5 | . . . . . 1 . . . . 1 . 1 . 1 1 . Botnet 4 | . . . . . 1 . . . . 1 . 1 . . 1 . Override 1 | . . . . . . . . . . . . . . 1 . . Fabricators . | . . . . . . . . . . . . . . . . . Repair Stations 1 | . . . . . . . . . . . . . . . 1 . Patch 1 | . . . . . . . . . . . . . . . 1 . Recycling Units . | . . . . . . . . . . . . . . . . . Scanalyzers . | . . . . . . . . . . . . . . . . . Garrison Access . | . . . . . . . . . . . . . . . . . Data Cores Recovered 1 | . . . . . . . . . 1 . . . . . . . Used . | . . . . . . . . . . . . . . . . . Hacking Detections 20 | . . . 2 . 1 2 2 . 4 2 . 1 . . 2 4 Full Trace Events 8 | . . . 1 . . 1 . . 3 . . . . . . 3 Feedback Events 3 | . . . . . . . . . 1 . . . . . . 2 Corruption 2 | . . . . . . . . . 1 . . . . . . 1 Hackware Fried 1 | . . . . . . . . . . . . . . . . 1 Feedback Blocked . | . . . . . . . . . . . . . . . . . Robot Schematics Acquired . | . . . . . . . . . . . . . . . . . Robots Built . | . . . . . . . . . . . . . . . . . Authchips . | . . . . . . . . . . . . . . . . . Time . | . . . . . . . . . . . . . . . . . Total Robot Build Rating . | . . . . . . . . . . . . . . . . . Part Schematics Acquired . | . . . . . . . . . . . . . . . . . Parts Built . | . . . . . . . . . . . . . . . . . Authchips . | . . . . . . . . . . . . . . . . . Time . | . . . . . . . . . . . . . . . . . Total Part Build Rating . | . . . . . . . . . . . . . . . . . Part Studies Acquired 3 | . . . . . . . . . . . . 2 . . . 1 Parts Repaired . | . . . . . . . . . . . . . . . . . Time . | . . . . . . . . . . . . . . . . . Parts Recycled . | . . . . . . . . . . . . . . . . . Recycled Matter . | . . . . . . . . . . . . . . . . . Retrieved Matter . | . . . . . . . . . . . . . . . . . Retrieved Components . | . . . . . . . . . . . . . . . . . Parts Scanalyzed . | . . . . . . . . . . . . . . . . . Part Schematics Acquired . | . . . . . . . . . . . . . . . . . Parts Damaged . | . . . . . . . . . . . . . . . . . Bothacking | -11 -10 -10 -9 -9 -8 -7 -6 -6 -5 -4 -4 -3 -2 -2 -2 -1 ------------ Run | Yrd Mat Min Mat Min Mat Fac Fac DSF Fac Fac DSF Res Res Gar Res Acc Used RIF Installer . | . . . . . . . . . . . . . . . . . Robots Hacked . | . . . . . . . . . . . . . . . . . Non-combat . | . . . . . . . . . . . . . . . . . Combat . | . . . . . . . . . . . . . . . . . Robot Hacks Applied . | . . . . . . . . . . . . . . . . . Relay Couplers Released . | . . . . . . . . . . . . . . . . . Fabnet Peak Effective % . | . . . . . . . . . . . . . . . . . Robots Rewired . | . . . . . . . . . . . . . . . . . Allies Hacked . | . . . . . . . . . . . . . . . . . Hacks Repelled . | . . . . . . . . . . . . . . . . . Allies | -11 -10 -10 -9 -9 -8 -7 -6 -6 -5 -4 -4 -3 -2 -2 -2 -1 -------- Run | Yrd Mat Min Mat Min Mat Fac Fac DSF Fac Fac DSF Res Res Gar Res Acc Total Allies 2 | . . 2 . . . . . . . . . . . . . . Largest Group 2 | . . 2 . . . . . . . . . . . . . . Highest-Rated Group 39 | . . 39 . . . . . . . . . . . . . . Highest-Rated Ally 31 | . . 31 . . . . . . . . . . . . . . Total Orders . | . . . . . . . . . . . . . . . . . Ally Attacks . | . . . . . . . . . . . . . . . . . Total Damage . | . . . . . . . . . . . . . . . . . Kills . | . . . . . . . . . . . . . . . . . Allies Corrupted . | . . . . . . . . . . . . . . . . . Allies Melted . | . . . . . . . . . . . . . . . . . Intel | -11 -10 -10 -9 -9 -8 -7 -6 -6 -5 -4 -4 -3 -2 -2 -2 -1 ------- Run | Yrd Mat Min Mat Min Mat Fac Fac DSF Fac Fac DSF Res Res Gar Res Acc Active Infowar (turns) 678 | . . . . . . 40 12 18 96 14 21 115 18 32 86 226 Optics 608 | . . . . . . . . . 96 14 21 115 18 32 86 226 Sensors 412 | . . . . . . 40 12 18 92 14 21 28 . . . 187 Machine Analysis 471 | . . . . . . . . . . . . 109 18 32 86 226 Robot Analysis Total 1 | . . . . . . . . . . 1 . . . . . . Derelict Logs Recovered . | . . . . . . . . . . . . . . . . . Drone Launches . | . . . . . . . . . . . . . . . . . Drone Recoveries . | . . . . . . . . . . . . . . . . . Exploration | -11 -10 -10 -9 -9 -8 -7 -6 -6 -5 -4 -4 -3 -2 -2 -2 -1 ------------- Run | Yrd Mat Min Mat Min Mat Fac Fac DSF Fac Fac DSF Res Res Gar Res Acc Turns Passed 1204 | 21 13 61 89 52 106 181 21 25 123 14 21 115 18 32 86 226 Spaces Moved 2429 | 29 26 120 85 87 172 336 49 56 239 32 42 277 32 78 173 596 Core 493 | 29 26 120 85 87 146 . . . . . . . . . . . Treads . | . . . . . . . . . . . . . . . . . Legs . | . . . . . . . . . . . . . . . . . Wheels . | . . . . . . . . . . . . . . . . . Hover 960 | . . . . . . 53 49 56 239 32 42 277 32 78 102 . Flight 976 | . . . . . 26 283 . . . . . . . . 71 596 Fastest Speed 20 | 50 50 50 50 50 35 34 42 42 42 42 20 20 23 23 27 27 Average Speed 34 | 50 50 50 50 50 47 35 42 42 42 42 29 22 23 23 32 27 Slowest Speed 108 | 50 50 50 50 50 50 50 42 42 42 42 42 23 23 28 108 27 Overloaded Moves . | . . . . . . . . . . . . . . . . . Propulsion Burnouts . | . . . . . . . . . . . . . . . . . Robots Hopped 8 | . . . . . 1 . . . . . . . . . 3 4 Potential Cave-ins 3 | . . . . . . . . . . . . . . . . 3 Cave-ins Triggered . | . . . . . . . . . . . . . . . . . Exploration Rate (%) 22 | 3 9 48 17 28 40 13 2 83 12 3 47 15 3 21 7 31 Regions Visited 16 Branch Regions 2 Pre-discovered Areas . | . . . . . . . . . . . . . . . . . Known Exits Taken 7 | . . . . . . 1 1 . 1 1 . 1 1 . 1 . Unknown Exits Taken 6 | 1 1 1 1 1 1 . . . . . . . . . . . Scrap Searched 2 | . . 2 . . . . . . . . . . . . . . Spaces Dug 40 | . . . . . . 1 . . 2 . . 9 4 . 7 17 Terrain Destroyed 162 | . . . 66 . 46 1 . . 2 . . 9 4 . 7 27 Melee 40 | . . . . . . 1 . . 2 . . 9 4 . 7 17 Projectile . | . . . . . . . . . . . . . . . . . AOE 122 | . . . 66 . 46 . . . . . . . . . . 10 Terrain Rammed . | . . . . . . . . . . . . . . . . . Walls Destroyed . | . . . . . . . . . . . . . . . . . Machines Disabled . | . . . . . . . . . . . . . . . . . Actions | -11 -10 -10 -9 -9 -8 -7 -6 -6 -5 -4 -4 -3 -2 -2 -2 -1 --------- Run | Yrd Mat Min Mat Min Mat Fac Fac DSF Fac Fac DSF Res Res Gar Res Acc Total 2610 | 32 25 120 106 93 185 379 48 56 251 31 47 303 36 91 183 624 Wait 8 | . . . . . . 1 . . . . . 1 . 6 . . Move 2397 | 28 25 119 84 86 169 335 48 55 238 31 41 276 32 77 166 587 Hop 8 | . . . . . 1 . . . . . . . . . 3 4 Pick Up 13 | . . 1 . 1 3 2 . . 2 . 1 1 . . . 2 Fast Attach 33 | 4 . . 1 2 1 7 . 1 4 . 5 4 . . 1 3 Attach 11 | . . . . . 2 4 . . . . . 3 . . . 2 Detach 4 | . . . 1 . . . . . . . . . . . 2 1 Swap 6 | . . . . 1 . . . . 1 . . 1 . . 1 2 Drop 5 | . . . . . 1 . . . 1 . . 1 . . . 2 Fire 27 | . . . 20 . 6 . . . . . . . . . . 1 Melee 65 | . . . . . . 10 . . 5 . . 16 4 . 10 20 Ram 4 | . . . . 3 1 . . . . . . . . . . . Kick . | . . . . . . . . . . . . . . . . . Crush 1 | . . . . . 1 . . . . . . . . . . . Escape Stasis 28 | . . . . . . 20 . . . . . . . 8 . . Rewire . | . . . . . . . . . . . . . . . . . Trap . | . . . . . . . . . . . . . . . . . Miscellaneous . | . . . . . . . . . . . . . . . . . Route ------- -11/Scrapyard -10/Materials -10/Mines -9/Materials -9/Mines -8/Materials -7/Factory -6/Factory -6/DSF -5/Factory -4/Factory -4/DSF -3/Research (discovered 3 exits: *Res x3) -2/Research -2/Garrison (discovered 3 exits: *Res x3) -2/Research (discovered 3 exits: *Acc x3) -1/Access (discovered 2 exits: *Sur / Com) To Epsilon Eridani History --------- Turn | Location | Event 6 | -11/Scrapyard | Discovered new exit (range 16) 22 | -11/Scrapyard | Entered Materials 28 | -10/Materials | Discovered new exit (range 15) 35 | -10/Materials | Entered Mines 89 | -10/Mines | Discovered new exit (range 13) 96 | -10/Mines | Entered Materials 96 | -9/Materials | Evolved 2 slots: Propulsion x2 155 | -9/Materials | Discovered new exit (range 13) 185 | -9/Materials | Entered Mines 201 | -9/Mines | Joined a pair of Derelicts in attacking an 0b10 outpost 222 | -9/Mines | Assembled infested the area 235 | -9/Mines | Discovered new exit (range 5) 237 | -9/Mines | Entered Materials 237 | -8/Materials | Evolved 2 slots: Propulsion x1, Utility x1 315 | -8/Materials | Build established: Mutant 325 | -8/Materials | Released all parts (3) 338 | -8/Materials | Discovered new exit (range 16) 343 | -8/Materials | Entered Factory 343 | -7/Factory | Evolved 2 slots: Power x1, Propulsion x1 356 | -7/Factory | Lost 5 parts (4n1w) 521 | -7/Factory | Discovered new exit (range 8) 524 | -7/Factory | Identified exit to Factory 524 | -7/Factory | Entered another Factory area 524 | -6/Factory | Evolved 2 slots: Propulsion x1, Utility x1 545 | -6/Factory | Identified exit to DSF 545 | -6/Factory | Entered DSF 564 | -6/DSF | Discovered new exit (range 14) 567 | -6/DSF | Additional patrols routed to DSF 570 | -6/DSF | Identified exit to Factory 570 | -6/DSF | Entered Factory 570 | -5/Factory | Evolved 2 slots: Propulsion x1, Utility x1 682 | -5/Factory | Discovered new exit (range 16) 693 | -5/Factory | Identified exit to Factory 693 | -5/Factory | Entered another Factory area 693 | -4/Factory | Evolved 2 slots: Propulsion x2 706 | -4/Factory | Identified exit to DSF 707 | -4/Factory | Entered DSF 712 | -4/DSF | Discovered new exit (range 19) 728 | -4/DSF | Entered Research 728 | -3/Research | Evolved 2 slots: Power x2 740 | -3/Research | Identified exit to Research 787 | -3/Research | Lost 5 parts (2n3u) 843 | -3/Research | Entered another Research area 843 | -2/Research | Evolved 2 slots: Propulsion x1, Utility x1 861 | -2/Research | Identified exit to Garrison 861 | -2/Research | Entered Garrison 878 | -2/Garrison | Spotted B-90 Cyclops 879 | -2/Garrison | Triggered checkpoint 881 | -2/Garrison | Identified exit to Research 893 | -2/Garrison | Entered Research 947 | -2/Research | Lost 3 parts (3n) 954 | -2/Research | Identified exit to Access 979 | -2/Research | Entered Access 979 | -1/Access | Evolved 2 slots: Propulsion x1, Utility x1 1089 | -1/Access | Spotted B-99 Colossus 1109 | -1/Access | Hacking Suite fried by hacking feedback 1132 | -1/Access | Energy Cycler disabled 1146 | -1/Access | Identified exit to Command 1170 | -1/Access | Lost 5 parts (2p1n2u) 1204 | -1/Access | Discovered new exit (range 7) 1205 | -1/Access | Identified exit to Surface 1205 | *** | Escaped! Last Messages --------------- 01179_ ALERT: Suspicious activity at Terminal A006. Dispatching Investigation squad. 01185_ Imp. Linear Gravjet+ destroyed. 01188_ Slug penetrates Wall. 01192_ Connecting with Scanalyzer... >>Study(Antigrav Array) Identified Antigrav Array... Downloading performance data... Effective improvements: +2 support 01193_ O-24 Administrator: "IFF HANDSHAKE FAILED. SECURING TERMINAL." 01197_ O-24 Administrator sends out distress signal. 01200_ W-44 Eye sends out distress signal. 01204_ The Access Shell folds into the floor. 01204_ EXIT=FOUND 01205_ Critical hit (Destroy). 01205_ Enh. Nuclear Core destroyed. 01205_ EXIT=IDENTIFIED: SURFACE Map ----- +----------------------------------------------------+ | ????????????????????# ! #?# #??? | | ????????????????????# """"" #?# #??? | | ????????????????????# """ """"" #?# #??? | | ????????????????????# """ """"" #?# #??? | | ????????????????????# "S """"" #?? #??? | | ????????????????????# """ """"" #?? #??? | | ????????????????????# "" """"" #?? ???? | | ????????????????????# #?? ??????? | | ????????????????????# ! ##???????????? | | ????????????????????################"#????? ? #??? | | ?????????### #####################"### #??? | | ??????? == | | ????????== g A k Au | | ?????????% ####### ""############/#+#### | | ????????????????????# s""#?????????????????? | | ????????????????????# ""#?????????????????? | | ????????????????????# T#?????????????????? | | ????????????????????# ""#?????????????????? | | ????????????????????# ""#?????????????????? | | ???????????????????## ""##????????????????? | | ???????????????????# #????????????????? | | ???????????????????## ##????????????????? | | ????????????????????# #?????????????????? | | ????????????????????# #?????????????????? | | ????????????????????# #?????????????????? | | ????????????????????# @" #?????????????????? | | ????????????????????# "" #?????????????????? | | ????????????????????# #?????????????????? | | ????????????????????# #?????????????????? | | ????????????????????# #?????????????????? | | ????????????????????#""""""""""#?????????????????? | | ?????????????????????????????????????????????????? | | ?????????????????????????????????????????????????? | | ?????????????????????????????????????????????????? | | ?????????????????????????????????????????????????? | | ??????????????????????BB????BB???????????????????? | | ??????????????????????BB????BB???????????????????? | | ?????????????????????????????????????????????????? | | ?????????????????????????????????????????????????? | | ?????????????????????????????????????????????????? | | ?????????????????????????????????????????????????? | | ?????????????????????????????????????????????????? | | ?????????????????????????????????????????????????? | | ?????????????????????????????????????????????????? | | ?????????????????????????????????????????????????? | | ?????????????????????????????????????????????????? | | ?????????????????????????????????????????????????? | | ?????????????????????????????????????????????????? | | ?????????????????????????????????????????????????? | | ?????????????????????????????????????????????????? | +----------------------------------------------------+ Best States ------------- Heat Dissipation 52 Coolant Potential 65 Energy Generation 60 Energy Capacity 610 Matter Stores 300 Matter Capacity 300 Sight Range 22 Robot Scan Range 16 Terrain Scan Density 10 Base Temperature (-) 200 Corruption Block 15 Armor Coverage 225 Propulsion Shielding 33 Phase Shifting 5 Evasion (%) 69 Recoil Reduction 1 Offensive Hacking 10 Item Schematics ----------------- None Robot Schematics ------------------ None Fabricated ------------ Nothing Repaired ---------- Nothing Studied --------- Impulse Thruster Array | -3/Research | Hacked Imp. Linear Gravjet | -3/Research | Hacked Antigrav Array | -1/Access | Hacked Alien Tech Used ----------------- None Achievements -------------- None Challenges ------------ None Game ------ Seed BoltTrackerNeutralizer Manual? 0 Play Time 00:31:59 Cumulative 390.2 hours Start 2026.09.02 @ 21:38:39 End 2026.09.02 @ 22:11:21 Sessions 1 Manual Loads 0 Difficulty Rogue Special Mode None Game No. 184 Rogue 184 Adventurer 0 Explorer 0 Win Type 0 Total 36 Types 16/1/9/1/5/1/1/0/0/2 Lore% 89 Gallery% 80 Achievement% 87 Wizard Run 0 Options --------- Layout 1 ASCII 0 Keyboard 0 Movement Numpad Keybinds 0 Fullscreen 1 Font 24/Smallcaps Map View 50x35 Zoom Use 0% Tactical HUD 1 Map Filters NONE Filters NONE Steam 1 RUN: 29a6edf9-0f9f-4202-a014-006adaa6ba28